[Event "*** Titled Tuesday Blitz"]
[Site "Chess.com"]
[Date "2020.05.05"]
[Round "4"]
[White "realmadridtv"]
[Black "heyiampotato"]
[Result "1-0"]
[WhiteElo "2355"]
[BlackElo "2532"]
[TimeControl "180+1"]
[EndTime "10:40:15 PDT"]
[Termination "realmadridtv won by resignation"]

1. d4 {[%clk 0:03:00.9]} 1... Nf6 {[%clk 0:02:59.8]} 2. c4 {[%clk 0:03:00.9]}
2... e6 {[%clk 0:02:59.9]} 3. g3 {[%clk 0:03:01.3]} 3... d5 {[%clk 0:02:59.6]}
4. Bg2 {[%clk 0:03:01.7]} 4... Bb4+ {[%clk 0:02:59.4]} 5. Nd2 {[%clk 0:03:01.1]}
5... O-O {[%clk 0:02:58.2]} 6. Nf3 {[%clk 0:03:01.1]} 6... dxc4 {[%clk
0:02:56.4]} 7. O-O {[%clk 0:02:59.5]} 7... b5 {[%clk 0:02:52.3]} 8. a4 {[%clk
0:02:59.3]} 8... c6 {[%clk 0:02:47.7]} 9. Ne1 {[%clk 0:02:57.9]} 9... Nd5 {[%clk
0:02:20.1]} 10. e4 {[%clk 0:02:53.7]} 10... Nb6 {[%clk 0:02:04.7]} 11. a5 {[%clk
0:02:53.3]} 11... N6d7 {[%clk 0:02:03.7]} 12. Nc2 {[%clk 0:02:53.4]} 12... Be7
{[%clk 0:02:02.2]} 13. e5 {[%clk 0:02:51.3]} 13... Ba6 {[%clk 0:01:45.4]} 14.
Ne4 {[%clk 0:02:50.3]} 14... b4 {[%clk 0:01:36.1]} 15. Qg4 {[%clk 0:02:45.1]}
15... Kh8 {[%clk 0:01:31.9]} 16. Re1 {[%clk 0:02:35.3]} 16... Bb5 {[%clk
0:01:31.8]} 17. Bg5 {[%clk 0:02:32.8]} 17... Na6 {[%clk 0:01:15.2]} 18. Bxe7
{[%clk 0:02:20.2]} 18... Qxe7 {[%clk 0:01:16.1]} 19. Nd6 {[%clk 0:02:20.8]}
19... Rad8 {[%clk 0:01:11.4]} 20. Ne3 {[%clk 0:02:13.3]} 20... f5 {[%clk
0:00:55.5]} 21. Qh3 {[%clk 0:01:44.7]} 21... Nc7 {[%clk 0:00:53.8]} 22. f4
{[%clk 0:01:30.4]} 22... Nd5 {[%clk 0:00:32.8]} 23. Bxd5 {[%clk 0:01:29.3]}
23... exd5 {[%clk 0:00:21]} 24. Nexf5 {[%clk 0:01:27.5]} 24... Qe6 {[%clk
0:00:20.6]} 25. Qh4 {[%clk 0:01:16.2]} 25... g6 {[%clk 0:00:20]} 26. Nh6 {[%clk
0:01:12.2]} 26... Kg7 {[%clk 0:00:15.4]} 27. f5 {[%clk 0:01:10]} 27... gxf5
{[%clk 0:00:15.3]} 28. Nhxf5+ {[%clk 0:01:10.2]} 28... Kh8 {[%clk 0:00:13.2]}
29. g4 {[%clk 0:01:03.7]} 29... c5 {[%clk 0:00:11.3]} 30. Re3 {[%clk 0:00:59.5]}
30... cxd4 {[%clk 0:00:10.8]} 31. Rh3 {[%clk 0:00:57.5]} 31... Qg6 {[%clk
0:00:10.1]} 32. Ne7 {[%clk 0:00:51.6]} 32... Qg7 {[%clk 0:00:10.2]} 33. Ndf5
{[%clk 0:00:51.7]} 33... Qf7 {[%clk 0:00:10.4]} 34. e6 {[%clk 0:00:49.8]} 34...
Qg8 {[%clk 0:00:06.5]} 35. Nxg8 {[%clk 0:00:49.2]} 1-0

[Event "*** Titled Tuesday Blitz"]
[Site "Chess.com"]
[Date "2020.05.05"]
[Round "4"]
[White "Aureliano-Buendia"]
[Black "Bastiandash"]
[Result "1-0"]
[WhiteElo "2392"]
[BlackElo "2099"]
[TimeControl "180+1"]
[EndTime "10:40:15 PDT"]
[Termination "Aureliano-Buendia won on time"]

1. d4 {[%clk 0:03:00.7]} 1... Nf6 {[%clk 0:02:59.9]} 2. c4 {[%clk 0:02:59.9]}
2... e6 {[%clk 0:03:00.8]} 3. g3 {[%clk 0:03:00.3]} 3... Bb4+ {[%clk 0:03:00.1]}
4. Nd2 {[%clk 0:03:00.1]} 4... O-O {[%clk 0:02:57.4]} 5. Bg2 {[%clk 0:02:59.9]}
5... d5 {[%clk 0:02:49.1]} 6. Qc2 {[%clk 0:02:59.4]} 6... Nbd7 {[%clk
0:02:26.2]} 7. Nf3 {[%clk 0:02:59]} 7... b6 {[%clk 0:02:11.9]} 8. O-O {[%clk
0:02:57.6]} 8... Bb7 {[%clk 0:02:11]} 9. Rd1 {[%clk 0:02:54.4]} 9... Rc8 {[%clk
0:02:09.3]} 10. Ne5 {[%clk 0:02:52.9]} 10... c5 {[%clk 0:01:33.6]} 11. Ndf3
{[%clk 0:02:39.2]} 11... cxd4 {[%clk 0:01:32]} 12. Rxd4 {[%clk 0:02:31.1]} 12...
Nxe5 {[%clk 0:01:14.5]} 13. Nxe5 {[%clk 0:02:29.9]} 13... Qc7 {[%clk 0:01:09.7]}
14. Bf4 {[%clk 0:02:24.7]} 14... Bd6 {[%clk 0:01:09.5]} 15. Nd3 {[%clk
0:01:56.2]} 15... e5 {[%clk 0:01:00.8]} 16. Bxe5 {[%clk 0:01:48.1]} 16... Bxe5
{[%clk 0:01:00.9]} 17. Rh4 {[%clk 0:01:48.2]} 17... Rfe8 {[%clk 0:00:39]} 18.
Rc1 {[%clk 0:01:43.7]} 18... dxc4 {[%clk 0:00:36.9]} 19. Rxc4 {[%clk 0:01:43.1]}
19... Qxc4 {[%clk 0:00:31]} 20. Qxc4 {[%clk 0:01:42.2]} 20... Rxc4 {[%clk
0:00:31.9]} 21. Rxc4 {[%clk 0:01:42.2]} 21... Bxg2 {[%clk 0:00:32.4]} 22. Kxg2
{[%clk 0:01:42.5]} 22... Bb8 {[%clk 0:00:33.1]} 23. e3 {[%clk 0:01:40.8]} 23...
g6 {[%clk 0:00:33.4]} 24. Nb4 {[%clk 0:01:37]} 24... Kg7 {[%clk 0:00:29.8]} 25.
Nc6 {[%clk 0:01:36]} 25... Nd5 {[%clk 0:00:24.6]} 26. b4 {[%clk 0:01:34.2]}
26... Be5 {[%clk 0:00:18.9]} 27. Re4 {[%clk 0:01:29.4]} 27... f6 {[%clk
0:00:11.7]} 28. f4 {[%clk 0:01:28.7]} 28... Rc8 {[%clk 0:00:11.6]} 29. Nxa7
{[%clk 0:01:26.8]} 29... Ra8 {[%clk 0:00:11.4]} 30. Nb5 {[%clk 0:01:20.2]} 30...
Rxa2+ {[%clk 0:00:12.3]} 31. Kf3 {[%clk 0:01:20.3]} 31... Bc3 {[%clk 0:00:09.6]}
32. Re8 {[%clk 0:01:17.9]} 32... Ra1 {[%clk 0:00:06.8]} 33. Rd8 {[%clk
0:01:16.2]} 33... Nxb4 {[%clk 0:00:03.2]} 34. Nxc3 {[%clk 0:01:15.7]} 34... Rh1
{[%clk 0:00:03.4]} 35. h4 {[%clk 0:01:13.5]} 35... Rc1 {[%clk 0:00:03.7]} 36.
Ne2 {[%clk 0:01:13.4]} 36... Rc2 {[%clk 0:00:03]} 37. Rd7+ {[%clk 0:01:13.7]}
37... Kh6 {[%clk 0:00:02.7]} 38. Nd4 {[%clk 0:01:14.6]} 38... Rb2 {[%clk
0:00:02.1]} 39. Ne6 {[%clk 0:01:13.9]} 39... Nd3 {[%clk 0:00:02.7]} 40. g4
{[%clk 0:01:13.3]} 40... Ne1+ {[%clk 0:00:02.4]} 41. Kg3 {[%clk 0:01:11.8]}
41... Rg2+ {[%clk 0:00:02.3]} 42. Kh3 {[%clk 0:01:12.5]} 1-0

[Event "*** Titled Tuesday Blitz"]
[Site "Chess.com"]
[Date "2020.05.05"]
[Round "4"]
[White "saikrishnaReturns"]
[Black "Macron20hTF1"]
[Result "0-1"]
[WhiteElo "2583"]
[BlackElo "2374"]
[TimeControl "180+1"]
[EndTime "10:40:16 PDT"]
[Termination "Macron20hTF1 won by checkmate"]

1. e4 {[%clk 0:03:00.9]} 1... g6 {[%clk 0:02:59.9]} 2. h4 {[%clk 0:03:00.6]}
2... h5 {[%clk 0:02:56.1]} 3. Nh3 {[%clk 0:02:58.1]} 3... Bg7 {[%clk 0:02:53.3]}
4. Nc3 {[%clk 0:02:57.2]} 4... c5 {[%clk 0:02:49.2]} 5. Bc4 {[%clk 0:02:54]}
5... e6 {[%clk 0:02:44.8]} 6. Ng5 {[%clk 0:02:51]} 6... Nc6 {[%clk 0:02:43.6]}
7. f4 {[%clk 0:02:46.3]} 7... a6 {[%clk 0:02:41]} 8. a4 {[%clk 0:02:44]} 8...
Nge7 {[%clk 0:02:33.2]} 9. e5 {[%clk 0:02:26.4]} 9... d5 {[%clk 0:02:33.1]} 10.
exd6 {[%clk 0:02:26.1]} 10... Nf5 {[%clk 0:02:27.5]} 11. Nce4 {[%clk 0:02:14.2]}
11... O-O {[%clk 0:02:26.2]} 12. g4 {[%clk 0:02:10.1]} 12... Nxd6 {[%clk
0:02:15.4]} 13. Nxd6 {[%clk 0:02:10.3]} 13... Qxd6 {[%clk 0:02:16.3]} 14. d3
{[%clk 0:02:10.6]} 14... hxg4 {[%clk 0:01:26.8]} 15. h5 {[%clk 0:02:04.5]} 15...
e5 {[%clk 0:01:20.2]} 16. h6 {[%clk 0:01:53.7]} 16... Bf6 {[%clk 0:01:05.6]} 17.
h7+ {[%clk 0:01:48.4]} 17... Kh8 {[%clk 0:01:05.1]} 18. Nxf7+ {[%clk 0:01:48.1]}
18... Rxf7 {[%clk 0:01:05.7]} 19. Bxf7 {[%clk 0:01:48.6]} 19... exf4 {[%clk
0:01:04.8]} 20. Bxg6 {[%clk 0:01:48.4]} 20... Nd4 {[%clk 0:00:38.5]} 21. Be4
{[%clk 0:01:42.8]} 21... f3 {[%clk 0:00:34.7]} 22. Be3 {[%clk 0:01:28.2]} 22...
Bf5 {[%clk 0:00:13.7]} 23. Qd2 {[%clk 0:01:23.6]} 23... Re8 {[%clk 0:00:11.8]}
24. O-O-O {[%clk 0:01:10.4]} 24... Ne2+ {[%clk 0:00:10.3]} 25. Kb1 {[%clk
0:01:09.4]} 25... Qb6 {[%clk 0:00:04]} 26. c4 {[%clk 0:00:39.4]} 26... Bxe4
{[%clk 0:00:04.3]} 27. dxe4 {[%clk 0:00:21.8]} 27... Rd8 {[%clk 0:00:04.7]} 28.
Qc2 {[%clk 0:00:19.4]} 28... Nc3+ {[%clk 0:00:04.9]} 29. Kc1 {[%clk 0:00:19.4]}
29... Nxd1 {[%clk 0:00:05]} 30. Rxd1 {[%clk 0:00:20.3]} 30... Rxd1+ {[%clk
0:00:05.3]} 31. Qxd1 {[%clk 0:00:20.9]} 31... Qxb2# {[%clk 0:00:05.3]} 0-1

[Event "*** Titled Tuesday Blitz"]
[Site "Chess.com"]
[Date "2020.05.05"]
[Round "4"]
[White "anon219"]
[Black "Quaternitychess"]
[Result "0-1"]
[WhiteElo "2773"]
[BlackElo "2432"]
[TimeControl "180+1"]
[EndTime "10:40:17 PDT"]
[Termination "Quaternitychess won by checkmate"]

1. e4 {[%clk 0:03:00.9]} 1... e6 {[%clk 0:02:59.6]} 2. d4 {[%clk 0:03:00.9]}
2... d5 {[%clk 0:03:00.2]} 3. Nc3 {[%clk 0:03:01.6]} 3... Nf6 {[%clk 0:02:59.2]}
4. e5 {[%clk 0:03:02]} 4... Nfd7 {[%clk 0:02:58.6]} 5. Nce2 {[%clk 0:03:02.4]}
5... c5 {[%clk 0:02:59]} 6. c3 {[%clk 0:03:02.9]} 6... Nc6 {[%clk 0:02:59.7]} 7.
Nf3 {[%clk 0:03:03.5]} 7... Qb6 {[%clk 0:02:55.8]} 8. a3 {[%clk 0:03:02.5]} 8...
cxd4 {[%clk 0:02:55.5]} 9. cxd4 {[%clk 0:03:02]} 9... f6 {[%clk 0:02:56.2]} 10.
exf6 {[%clk 0:03:02.2]} 10... Nxf6 {[%clk 0:02:55.5]} 11. Nc3 {[%clk 0:03:02.7]}
11... Bd6 {[%clk 0:02:55]} 12. Bd3 {[%clk 0:03:02.8]} 12... O-O {[%clk
0:02:53.8]} 13. O-O {[%clk 0:03:02.9]} 13... Bd7 {[%clk 0:02:52.8]} 14. Re1
{[%clk 0:03:00.4]} 14... Rae8 {[%clk 0:02:37]} 15. h3 {[%clk 0:02:55.4]} 15...
Re7 {[%clk 0:02:21.9]} 16. Be3 {[%clk 0:02:48.8]} 16... Be8 {[%clk 0:02:21.4]}
17. Qc2 {[%clk 0:02:46]} 17... Bh5 {[%clk 0:02:18.3]} 18. g4 {[%clk 0:02:27.1]}
18... Be8 {[%clk 0:01:56.9]} 19. Rad1 {[%clk 0:02:21.4]} 19... Kh8 {[%clk
0:01:19.4]} 20. Ne5 {[%clk 0:02:03.5]} 20... Nxd4 {[%clk 0:01:12.2]} 21. Bxd4
{[%clk 0:01:54.6]} 21... Qxd4 {[%clk 0:01:13.1]} 22. Bxh7 {[%clk 0:01:53.3]}
22... Qf4 {[%clk 0:01:09.8]} 23. Ng6+ {[%clk 0:00:14.4]} 23... Bxg6 {[%clk
0:01:08.7]} 24. Bxg6 {[%clk 0:00:15.3]} 24... Qh2+ {[%clk 0:00:52.5]} 25. Kf1
{[%clk 0:00:15]} 25... Qxh3+ {[%clk 0:00:53.1]} 26. Ke2 {[%clk 0:00:14.7]} 26...
Qxg4+ {[%clk 0:00:53.5]} 27. Kf1 {[%clk 0:00:13.7]} 27... Ng8 {[%clk 0:00:43.2]}
28. Re3 {[%clk 0:00:11.4]} 28... Bc5 {[%clk 0:00:36.4]} 29. Nxd5 {[%clk
0:00:09.3]} 29... exd5 {[%clk 0:00:35.8]} 30. Qxc5 {[%clk 0:00:07.9]} 30...
Qxd1+ {[%clk 0:00:35.6]} 31. Kg2 {[%clk 0:00:07.7]} 31... Rxe3 {[%clk
0:00:33.2]} 32. Qxf8 {[%clk 0:00:05.3]} 32... Qg4+ {[%clk 0:00:32.8]} 33. Kf1
{[%clk 0:00:05.9]} 33... Qh3+ {[%clk 0:00:32.4]} 34. Kg1 {[%clk 0:00:05.2]}
34... Re1# {[%clk 0:00:33.3]} 0-1

[Event "*** Titled Tuesday Blitz"]
[Site "Chess.com"]
[Date "2020.05.05"]
[Round "4"]
[White "jonaszmb"]
[Black "Biranidun"]
[Result "0-1"]
[WhiteElo "2487"]
[BlackElo "2716"]
[TimeControl "180+1"]
[EndTime "10:40:17 PDT"]
[Termination "Biranidun won by resignation"]

1. d4 {[%clk 0:03:00.9]} 1... Nf6 {[%clk 0:02:59.9]} 2. c4 {[%clk 0:03:00.8]}
2... g6 {[%clk 0:03:00]} 3. Nf3 {[%clk 0:03:00.5]} 3... Bg7 {[%clk 0:02:59.9]}
4. g3 {[%clk 0:03:01]} 4... O-O {[%clk 0:03:00]} 5. Bg2 {[%clk 0:03:01.6]} 5...
d6 {[%clk 0:02:55.7]} 6. O-O {[%clk 0:03:01.6]} 6... Nc6 {[%clk 0:02:56]} 7. Nc3
{[%clk 0:03:00.4]} 7... a6 {[%clk 0:02:56.5]} 8. Qc2 {[%clk 0:03:00.5]} 8... Bf5
{[%clk 0:02:53.9]} 9. e4 {[%clk 0:02:59.8]} 9... Bg4 {[%clk 0:02:54.4]} 10. Be3
{[%clk 0:02:59.8]} 10... Nd7 {[%clk 0:02:54]} 11. Ne2 {[%clk 0:02:58.8]} 11...
Bxf3 {[%clk 0:02:37.3]} 12. Bxf3 {[%clk 0:02:58]} 12... e5 {[%clk 0:02:38.2]}
13. dxe5 {[%clk 0:02:25.2]} 13... Ndxe5 {[%clk 0:01:57.3]} 14. Bg2 {[%clk
0:02:24.2]} 14... b5 {[%clk 0:01:45.3]} 15. cxb5 {[%clk 0:01:52.4]} 15... axb5
{[%clk 0:01:46.2]} 16. a4 {[%clk 0:01:34.2]} 16... Ra5 {[%clk 0:00:58.9]} 17.
Bd2 {[%clk 0:01:19.7]} 17... b4 {[%clk 0:00:55.4]} 18. f4 {[%clk 0:01:15.5]}
18... Rc5 {[%clk 0:00:54.1]} 19. Qb3 {[%clk 0:00:59.7]} 19... Nc4 {[%clk
0:00:51.8]} 20. Bxb4 {[%clk 0:00:50.2]} 20... Qb8 {[%clk 0:00:51.3]} 21. e5
{[%clk 0:00:07.7]} 21... Qxb4 {[%clk 0:00:50.2]} 22. Qxb4 {[%clk 0:00:07.2]}
22... Nxb4 {[%clk 0:00:51.1]} 23. Rfc1 {[%clk 0:00:03]} 23... Nxb2 {[%clk
0:00:45.5]} 24. a5 {[%clk 0:00:02.3]} 24... Rxc1+ {[%clk 0:00:42.1]} 25. Rxc1
{[%clk 0:00:02.8]} 25... dxe5 {[%clk 0:00:36.4]} 26. Rxc7 {[%clk 0:00:02.7]}
26... exf4 {[%clk 0:00:36.7]} 27. Nxf4 {[%clk 0:00:03.6]} 27... N2d3 {[%clk
0:00:35.2]} 28. Nxd3 {[%clk 0:00:02.1]} 28... Nxd3 {[%clk 0:00:36.1]} 29. a6
{[%clk 0:00:02]} 29... Be5 {[%clk 0:00:29.1]} 30. Rb7 {[%clk 0:00:01.1]} 30...
Nc5 {[%clk 0:00:29.1]} 31. a7 {[%clk 0:00:01.3]} 31... Nxb7 {[%clk 0:00:27.9]}
32. Bxb7 {[%clk 0:00:02.2]} 32... Bd4+ {[%clk 0:00:28.6]} 0-1

[Event "*** Titled Tuesday Blitz"]
[Site "Chess.com"]
[Date "2020.05.05"]
[Round "4"]
[White "mbachez"]
[Black "pandamaster3000"]
[Result "1-0"]
[WhiteElo "2443"]
[BlackElo "2237"]
[TimeControl "180+1"]
[EndTime "10:40:18 PDT"]
[Termination "mbachez won by resignation"]

1. e4 {[%clk 0:03:00.9]} 1... c5 {[%clk 0:02:59.1]} 2. Nf3 {[%clk 0:03:00.2]}
2... d6 {[%clk 0:02:59.3]} 3. Bc4 {[%clk 0:02:59.6]} 3... e6 {[%clk 0:02:53.9]}
4. O-O {[%clk 0:02:57]} 4... Nf6 {[%clk 0:02:53.2]} 5. Qe2 {[%clk 0:02:56.3]}
5... Be7 {[%clk 0:02:50.6]} 6. c3 {[%clk 0:02:55.8]} 6... O-O {[%clk 0:02:49.3]}
7. Bb3 {[%clk 0:02:55.8]} 7... d5 {[%clk 0:02:44.2]} 8. e5 {[%clk 0:02:54.9]}
8... Nfd7 {[%clk 0:02:39.4]} 9. d4 {[%clk 0:02:54.6]} 9... Nc6 {[%clk
0:02:39.4]} 10. Rd1 {[%clk 0:02:46.9]} 10... Rb8 {[%clk 0:02:34.6]} 11. Bf4
{[%clk 0:02:42.1]} 11... b5 {[%clk 0:02:33.4]} 12. dxc5 {[%clk 0:02:41.2]} 12...
Nxc5 {[%clk 0:02:32]} 13. Bc2 {[%clk 0:02:41.3]} 13... a5 {[%clk 0:02:16.6]} 14.
Nd4 {[%clk 0:02:37.8]} 14... Qb6 {[%clk 0:02:14.3]} 15. Nd2 {[%clk 0:02:35.3]}
15... Ba6 {[%clk 0:02:09.5]} 16. Qh5 {[%clk 0:02:30.4]} 16... g6 {[%clk
0:02:09]} 17. Qh6 {[%clk 0:02:30.3]} 17... Rfc8 {[%clk 0:01:55.9]} 18. N2f3
{[%clk 0:02:27.4]} 18... Bf8 {[%clk 0:01:36.2]} 19. Qh4 {[%clk 0:02:11.5]} 19...
Qd8 {[%clk 0:01:18.5]} 20. Bg5 {[%clk 0:02:02.9]} 20... Qe8 {[%clk 0:01:04.2]}
21. Bf6 {[%clk 0:02:00]} 21... b4 {[%clk 0:00:47.5]} 22. Nxc6 {[%clk 0:01:54.1]}
22... Rxc6 {[%clk 0:00:44.2]} 23. Nd4 {[%clk 0:01:52.2]} 23... Rcc8 {[%clk
0:00:42.5]} 24. Rac1 {[%clk 0:01:33.1]} 24... bxc3 {[%clk 0:00:35.5]} 25. bxc3
{[%clk 0:01:33]} 25... Nd7 {[%clk 0:00:30.1]} 26. Ba4 {[%clk 0:01:27.6]} 26...
Rc4 {[%clk 0:00:19.6]} 27. Bb3 {[%clk 0:01:19.1]} 27... Rcc8 {[%clk 0:00:18.9]}
28. Re1 {[%clk 0:01:16.1]} 28... Nxf6 {[%clk 0:00:18.9]} 29. exf6 {[%clk
0:01:15.8]} 29... Bc4 {[%clk 0:00:18.6]} 30. Re3 {[%clk 0:01:14.4]} 30... a4
{[%clk 0:00:17.2]} 31. Rh3 {[%clk 0:01:11.9]} 31... h6 {[%clk 0:00:17.3]} 32.
Bc2 {[%clk 0:01:10.9]} 32... Bxa2 {[%clk 0:00:16.9]} 33. Rg3 {[%clk 0:01:07.2]}
33... Kh7 {[%clk 0:00:15.7]} 34. Nf3 {[%clk 0:01:02.1]} 34... Bb3 {[%clk
0:00:13.4]} 35. Ng5+ {[%clk 0:01:00.9]} 35... Kg8 {[%clk 0:00:12.9]} 36. Nxf7
{[%clk 0:00:58.8]} 36... Bxc2 {[%clk 0:00:09.4]} 37. Ne5 {[%clk 0:00:58.5]}
37... Bf5 {[%clk 0:00:07.5]} 38. f7+ {[%clk 0:00:58.1]} 38... Qxf7 {[%clk
0:00:07.2]} 39. Nxf7 {[%clk 0:00:58.2]} 39... Kxf7 {[%clk 0:00:08.1]} 40. Qxa4
{[%clk 0:00:56.1]} 40... Bd6 {[%clk 0:00:07]} 41. Rf3 {[%clk 0:00:55.4]} 41...
Kg7 {[%clk 0:00:06.3]} 42. h3 {[%clk 0:00:54.6]} 42... Ra8 {[%clk 0:00:05.6]}
43. Qd7+ {[%clk 0:00:53.8]} 1-0

[Event "*** Titled Tuesday Blitz"]
[Site "Chess.com"]
[Date "2020.05.05"]
[Round "4"]
[White "GM4life"]
[Black "ShahMatKanal"]
[Result "0-1"]
[WhiteElo "2161"]
[BlackElo "2406"]
[TimeControl "180+1"]
[EndTime "10:40:20 PDT"]
[Termination "ShahMatKanal won by resignation"]

1. e4 {[%clk 0:03:00.9]} 1... c5 {[%clk 0:02:58.8]} 2. Nf3 {[%clk 0:02:57.5]}
2... d6 {[%clk 0:02:59.1]} 3. d4 {[%clk 0:02:56.2]} 3... Nf6 {[%clk 0:02:59.3]}
4. Nc3 {[%clk 0:02:55]} 4... cxd4 {[%clk 0:02:59.2]} 5. Nxd4 {[%clk 0:02:55.9]}
5... a6 {[%clk 0:02:59.6]} 6. Be3 {[%clk 0:02:55.8]} 6... e6 {[%clk 0:02:58.4]}
7. g4 {[%clk 0:02:54.9]} 7... Be7 {[%clk 0:02:57]} 8. g5 {[%clk 0:02:54.3]} 8...
Nfd7 {[%clk 0:02:54.4]} 9. h4 {[%clk 0:02:54.3]} 9... Nc6 {[%clk 0:02:50.2]} 10.
Nb3 {[%clk 0:02:52.5]} 10... b5 {[%clk 0:02:46.3]} 11. Qd2 {[%clk 0:02:48.8]}
11... Bb7 {[%clk 0:02:43.1]} 12. a3 {[%clk 0:02:48.7]} 12... Nb6 {[%clk
0:02:30.2]} 13. O-O-O {[%clk 0:02:45.7]} 13... Ne5 {[%clk 0:02:28.2]} 14. Na5
{[%clk 0:02:37.1]} 14... Rb8 {[%clk 0:02:15.7]} 15. f4 {[%clk 0:02:35.9]} 15...
Nec4 {[%clk 0:02:12.4]} 16. Nxc4 {[%clk 0:02:34.9]} 16... Nxc4 {[%clk
0:02:11.8]} 17. Bxc4 {[%clk 0:02:33.9]} 17... bxc4 {[%clk 0:02:12.5]} 18. Rhe1
{[%clk 0:02:28.8]} 18... Qa5 {[%clk 0:02:04.8]} 19. f5 {[%clk 0:02:23.7]} 19...
d5 {[%clk 0:01:38]} 20. exd5 {[%clk 0:02:15]} 20... Bxa3 {[%clk 0:01:35]} 21.
Nb1 {[%clk 0:01:13.5]} 21... Bxb2+ {[%clk 0:01:02.1]} 22. Kxb2 {[%clk
0:01:11.8]} 22... c3+ {[%clk 0:00:54.1]} 23. Qxc3 {[%clk 0:00:36.7]} 23... Bxd5+
{[%clk 0:00:53.8]} 24. Kc1 {[%clk 0:00:36.2]} 24... Rxb1+ {[%clk 0:00:53.9]} 25.
Kxb1 {[%clk 0:00:36.7]} 25... Qxc3 {[%clk 0:00:50.9]} 26. Bd4 {[%clk 0:00:28.4]}
26... Qb4+ {[%clk 0:00:45.2]} 27. Bb2 {[%clk 0:00:26.3]} 27... O-O {[%clk
0:00:44.1]} 28. fxe6 {[%clk 0:00:12.9]} 28... Rb8 {[%clk 0:00:36.9]} 29. exf7+
{[%clk 0:00:12.3]} 29... Kxf7 {[%clk 0:00:36.6]} 30. Rf1+ {[%clk 0:00:10.6]}
30... Kg6 {[%clk 0:00:35.8]} 31. Kc1 {[%clk 0:00:11.1]} 31... Qxb2+ {[%clk
0:00:34.7]} 32. Kd2 {[%clk 0:00:12]} 32... Qd4+ {[%clk 0:00:33.3]} 33. Kc1
{[%clk 0:00:12.4]} 33... Qe3+ {[%clk 0:00:32.5]} 34. Rd2 {[%clk 0:00:12.4]}
34... Qa3+ {[%clk 0:00:31.7]} 35. Kd1 {[%clk 0:00:12.1]} 35... Rb1+ {[%clk
0:00:29.7]} 36. Ke2 {[%clk 0:00:11.8]} 36... Bc4+ {[%clk 0:00:29.4]} 37. Kf2
{[%clk 0:00:10.6]} 37... Rxf1+ {[%clk 0:00:28.2]} 38. Kg2 {[%clk 0:00:11.5]} 0-1

[Event "*** Titled Tuesday Blitz"]
[Site "Chess.com"]
[Date "2020.05.05"]
[Round "4"]
[White "manmanlai1"]
[Black "Vamostodorecto"]
[Result "1-0"]
[WhiteElo "2346"]
[BlackElo "2522"]
[TimeControl "180+1"]
[EndTime "10:40:22 PDT"]
[Termination "manmanlai1 won by checkmate"]

1. e4 {[%clk 0:03:00.9]} 1... e5 {[%clk 0:02:59.3]} 2. Nf3 {[%clk 0:03:01]} 2...
Nc6 {[%clk 0:02:59.8]} 3. Bc4 {[%clk 0:03:01.4]} 3... Bc5 {[%clk 0:02:59.1]} 4.
O-O {[%clk 0:03:00.7]} 4... d6 {[%clk 0:02:59.6]} 5. c3 {[%clk 0:02:59.4]} 5...
Bb6 {[%clk 0:02:53.8]} 6. a4 {[%clk 0:02:54.2]} 6... h6 {[%clk 0:02:52]} 7. b4
{[%clk 0:02:42.8]} 7... a6 {[%clk 0:02:50.5]} 8. Ba3 {[%clk 0:02:33.4]} 8... Qf6
{[%clk 0:02:46.2]} 9. b5 {[%clk 0:02:25.3]} 9... axb5 {[%clk 0:02:47.1]} 10.
axb5 {[%clk 0:02:26.1]} 10... Nd8 {[%clk 0:02:35.9]} 11. d4 {[%clk 0:02:12.6]}
11... Ra7 {[%clk 0:01:51.2]} 12. Nbd2 {[%clk 0:01:49.2]} 12... g5 {[%clk
0:01:46.4]} 13. Nb3 {[%clk 0:01:27.6]} 13... Ne6 {[%clk 0:01:36.5]} 14. Bb4
{[%clk 0:01:22.5]} 14... g4 {[%clk 0:01:22.3]} 15. Rxa7 {[%clk 0:01:21]} 15...
Bxa7 {[%clk 0:01:21.6]} 16. dxe5 {[%clk 0:01:13.9]} 16... dxe5 {[%clk
0:01:22.5]} 17. Nfd2 {[%clk 0:01:13.6]} 17... h5 {[%clk 0:01:17.1]} 18. Qa1
{[%clk 0:01:12.6]} 18... Bb6 {[%clk 0:01:03.1]} 19. Qa8 {[%clk 0:01:10.9]} 19...
Qd8 {[%clk 0:01:03.7]} 20. Bd5 {[%clk 0:01:10.3]} 20... h4 {[%clk 0:00:55.3]}
21. Nc4 {[%clk 0:01:09.1]} 21... Nf6 {[%clk 0:00:42.5]} 22. Nxb6 {[%clk
0:01:07.2]} 22... cxb6 {[%clk 0:00:43.4]} 23. Rd1 {[%clk 0:00:57.6]} 23... Nxd5
{[%clk 0:00:30]} 24. Rxd5 {[%clk 0:00:50.4]} 24... Qc7 {[%clk 0:00:30]} 25. Nd2
{[%clk 0:00:42.8]} 25... f6 {[%clk 0:00:27.4]} 26. g3 {[%clk 0:00:41.2]} 26...
hxg3 {[%clk 0:00:26.8]} 27. hxg3 {[%clk 0:00:40.3]} 27... Kf7 {[%clk 0:00:27.4]}
28. Qa2 {[%clk 0:00:34.4]} 28... Kg6 {[%clk 0:00:25.6]} 29. Rd6 {[%clk
0:00:33.7]} 29... Qh7 {[%clk 0:00:24.6]} 30. Kf1 {[%clk 0:00:31.7]} 30... Qh1+
{[%clk 0:00:23.2]} 31. Ke2 {[%clk 0:00:32.1]} 31... Nc5 {[%clk 0:00:23.5]} 32.
Bxc5 {[%clk 0:00:31.6]} 32... bxc5 {[%clk 0:00:24.4]} 33. Qc4 {[%clk 0:00:26.9]}
33... b6 {[%clk 0:00:19.9]} 34. Qd5 {[%clk 0:00:26.7]} 34... Rh5 {[%clk
0:00:17.3]} 35. Qg8+ {[%clk 0:00:25.7]} 35... Kh6 {[%clk 0:00:16.3]} 36. Rxf6#
{[%clk 0:00:23.7]} 1-0